fUSD/lending_fUSD_20241119
["ID","MTS","AMOUNT","RATE_DAILY","PERIOD"]
[342671292,1732034110020,-800.0,0.00038356,2]
[342671293,1732034110048,-800.0,0.00038356,2]
[342671294,1732034110074,-1500.0,0.000405,2]
[342671295,1732034110105,-500.0,0.00042503,120]
[342671296,1732034110133,-500.0,0.00042503,120]
[342671297,1732034110159,-500.0,0.00042503,120]
[342671298,1732034110185,-112.661522,0.00042503,120]
[342671299,1732034110714,-387.338478,0.00042503,120]
[342671300,1732034110740,-500.0,0.00042503,120]
[342671301,1732034110768,-1500.0,0.000433,2]
[342671302,1732034110796,-800.0,0.00045,120]
[342671303,1732034110822,-731.893307,0.000465,30]
[342671304,1732034110848,-776.49865638,0.00046999,2]
[342671305,1732034110881,-153.22,0.00047161,2]
[342671306,1732034110913,-261.92013,0.00047866,7]
[342671307,1732034110944,-1131.85065857,0.00048,120]
[342671308,1732034110973,-261.92013,0.00048066,7]
[342671309,1732034111004,-240.16,0.00048217,120]
[342671310,1732034111035,-377.83,0.00048256,30]
[342671311,1732034111064,-261.92013,0.00048266,7]
[342671312,1732034111094,-1011.62,0.00048369,7]
[342671313,1732034111123,-1852.42,0.00048431,2]
[342671314,1732034111156,-261.92013,0.00048466,7]
[342671315,1732034111186,-151.0,0.00048767,120]
[342671316,1732034111215,-261.92013,0.00048866,7]
[342671317,1732034111243,-500.0,0.00049037,120]
[342671318,1732034111273,-261.92013,0.00049066,7]
[342671319,1732034111309,-261.92013,0.00049266,7]
[342671320,1732034111342,-13052.72799005,0.00049283,2]
[342671321,1732034111611,-10847.27200995,0.00049283,2]
[342671322,1732034111642,-800.0,0.00049315,12]
[342671323,1732034111670,-261.92013,0.00049466,7]
[342671324,1732034111699,-221.88,0.00049488,120]
[342671325,1732034111730,-2000.0,0.00049695,120]
[342671326,1732034111758,-1011.62,0.00049739,120]
[342671327,1732034111791,-9857.30786005,0.0005,50]
[342671328,1732034112361,-150.0,0.00045,120]
[342671329,1732034112396,-24850.0,0.0005,50]
[342671330,1732034281754,1500.0,0.0003,5]
[342671331,1732034318191,250.0,0.00027,2]
[342671332,1732034319306,300.0,0.00029,2]
[342671333,1732034478374,17762.0,0.0003,2]
[342671334,1732034597463,165.63,0.00015342,2]
[342671335,1732034597698,165.63,0.00021745,2]
[342671336,1732034597917,165.63,0.00028147,2]
[342671337,1732034863791,3136.0,0.000151,2]
[342671349,1732034903384,4000.0,0.0003001,2]
[342671353,1732034939051,4000.0,0.0003001,2]
[342671356,1732034953089,-1029.98,0.00030756,120]
[342671357,1732034956144,-636.9606,0.00030756,120]
[342671358,1732034956165,-208.8998714,0.00030856,2]
[342671359,1732034963095,-1127.0,0.00030856,2]
[342671365,1732035004962,1500.0,0.0003001,2]
[342671372,1732035031482,-3928.77218077,0.00030856,2]
[342671373,1732035031540,-619.32781923,0.00030856,2]
[342671374,1732035031553,-228.744,0.00030856,2]
[342671375,1732035031563,-350.0,0.00031,2]
[342671376,1732035031574,-1254.79994124,0.00031599,120]
[342671377,1732035031583,-452.74026344,0.00031599,120]
[342671378,1732035031592,-400.0,0.00033,2]
[342671379,1732035031601,-150.0,0.00033856,2]
[342671380,1732035031611,-165.63,0.00034549,2]
[342671381,1732035031620,-450.0,0.00035,2]
[342671382,1732035031629,-500.0,0.00037,2]
[342671383,1732035031638,-1000.0,0.000373,15]
[342671384,1732035031648,-150.99,0.000373,30]
[342671385,1732035031657,-150.99,0.000373,2]
[342671386,1732035031667,-509.62,0.000373,2]
[342671387,1732035031676,-446.61,0.000373,10]
[342671388,1732035031689,-189.99,0.000373,23]
[342671389,1732035031699,-1000.0,0.000376,15]
[342671390,1732035031709,-1000.0,0.000379,15]
[342671391,1732035031718,-165.63,0.00040952,2]
[342671392,1732035031729,-183.0,0.000411,2]
[342671393,1732035031738,-6579.0,0.00044536,117]
[342671394,1732035031748,-7000.0,0.00044788,2]
[342671395,1732035031757,-800.0,0.00045,120]
[342671396,1732035031767,-179.5143596,0.00045,120]
[342671397,1732035031778,-500.0,0.00045339,2]
[342671398,1732035031789,-153.22,0.00045371,2]
[342671399,1732035031800,-192.59,0.00046001,2]
[342671400,1732035031809,-2751.0,0.0004605,120]
[342671401,1732035031819,-157.0,0.00046324,2]
[342671402,1732035031830,-7235.8,0.00046448,117]
[342671403,1732035031839,-183.0,0.000466,2]
[342671404,1732035031848,-16820.89,0.0004664,2]
[342671405,1732035031858,-675.61,0.00046722,120]
[342671406,1732035031868,-29677.02021822,0.00047,90]
[342671407,1732035031877,-169.14,0.00047059,120]
[342671408,1732035031886,-1131.34,0.00047241,10]
[342671409,1732035031895,-1063.55,0.00047241,10]
[342671410,1732035031905,-886.29,0.00047241,10]
[342671411,1732035031913,-17452.28,0.00047251,2]
[342671412,1732035031922,-165.63,0.00047354,2]
[342671413,1732035031931,-250.0,0.00047465,120]
[342671414,1732035031941,-1000.0,0.00047804,120]
[342671415,1732035031950,-941.23,0.00047855,2]
[342671416,1732035031959,-165.32,0.00047859,120]
[342671417,1732035031968,-200.0,0.00047882,2]
[342671418,1732035031978,-4000.0,0.00047919,2]
[342671419,1732035031987,-192.59,0.00048265,2]
[342671420,1732035031996,-7896.0,0.00048361,117]
[342671421,1732035032005,-203.7156,0.00048666,7]
[342671422,1732035032015,-500.0,0.00048969,120]
[342671423,1732035032024,-300.0,0.00049226,2]
[342671424,1732035032033,-200.0,0.0004934,120]
[342671425,1732035032043,-250.0,0.00049398,2]
[342671426,1732035032055,-150.0,0.00049427,2]
[342671427,1732035032064,-3250.0,0.000499,120]
[342671428,1732035032073,-180.397,0.000499,88]
[342671429,1732035032083,-1123.589,0.000499,88]
[342671430,1732035032092,-180.94096747,0.000499,120]
[342671431,1732035032102,-50000.0,0.0005,50]
[342671433,1732035032111,-1000.0,0.0005,120]
[342671434,1732035032120,-500.0,0.0005,120]
[342671435,1732035032129,-500.0,0.0005,120]
[342671436,1732035032138,-500.0,0.0005,120]
[342671437,1732035032147,-500.0,0.0005,120]
[342671438,1732035032155,-500.0,0.0005,120]
[342671439,1732035032164,-500.0,0.0005,120]
[342671440,1732035032173,-500.0,0.0005,120]
[342671441,1732035032181,-200.0,0.0005,15]
[342671442,1732035032191,-500.0,0.0005,120]
[342671443,1732035032200,-500.0,0.0005,120]
[342671444,1732035032209,-500.0,0.0005,120]
[342671445,1732035032218,-500.0,0.0005,120]
[342671446,1732035032227,-500.0,0.0005,120]
[342671447,1732035032236,-500.0,0.0005,120]
[342671448,1732035032245,-500.0,0.0005,120]
[342671449,1732035032254,-500.0,0.0005,120]
[342671450,1732035032263,-500.0,0.0005,120]
[342671451,1732035032272,-500.0,0.0005,120]
[342671452,1732035032280,-500.0,0.0005,120]
[342671453,1732035032290,-500.0,0.0005,120]
[342671454,1732035032302,-500.0,0.0005,120]
[342671455,1732035032312,-500.0,0.0005,120]
[342671456,1732035032321,-500.0,0.0005,120]
[342671457,1732035032331,-500.0,0.0005,120]
[342671458,1732035032340,-500.0,0.0005,120]
[342671459,1732035032348,-500.0,0.0005,120]
[342671460,1732035032357,-500.0,0.0005,120]
[342671461,1732035032367,-500.0,0.0005,120]
[342671462,1732035032376,-500.0,0.0005,120]
[342671463,1732035032385,-500.0,0.0005,120]
[342671464,1732035032394,-500.0,0.0005,120]
[342671465,1732035032404,-500.0,0.0005,120]
[342671466,1732035032413,-500.0,0.0005,120]
[342671467,1732035032422,-500.0,0.0005,120]
[342671468,1732035032431,-500.0,0.0005,120]
[342671469,1732035032440,-500.0,0.0005,120]
[342671470,1732035032449,-500.0,0.0005,120]
[342671471,1732035032458,-500.0,0.0005,120]
[342671472,1732035032468,-500.0,0.0005,120]
[342671473,1732035032477,-500.0,0.0005,120]
[342671474,1732035032486,-500.0,0.0005,120]
[342671475,1732035032495,-500.0,0.0005,120]
[342671476,1732035032505,-500.0,0.0005,120]
[342671477,1732035032514,-500.0,0.0005,120]
[342671479,1732035032524,-500.0,0.0005,120]
[342671481,1732035032533,-500.0,0.0005,120]
[342671483,1732035032542,-500.0,0.0005,120]
[342671484,1732035032554,-500.0,0.0005,120]
[342671486,1732035032564,-500.0,0.0005,120]
[342671487,1732035032573,-500.0,0.0005,120]
[342671488,1732035032582,-500.0,0.0005,120]
[342671489,1732035032592,-500.0,0.0005,120]
[342671490,1732035032601,-500.0,0.0005,120]
[342671491,1732035032610,-500.0,0.0005,120]
[342671492,1732035032620,-500.0,0.0005,120]
[342671493,1732035032629,-500.0,0.0005,120]
[342671494,1732035032638,-500.0,0.0005,120]
[342671495,1732035032647,-500.0,0.0005,120]
[342671496,1732035032656,-500.0,0.0005,120]
[342671497,1732035032666,-500.0,0.0005,120]
[342671498,1732035032676,-500.0,0.0005,120]
[342671499,1732035032686,-500.0,0.0005,120]
[342671500,1732035032696,-500.0,0.0005,120]
[342671501,1732035032706,-500.0,0.0005,120]
[342671502,1732035032715,-500.0,0.0005,120]
[342671503,1732035032724,-500.0,0.0005,120]
[342671504,1732035032734,-500.0,0.0005,120]
[342671505,1732035032744,-500.0,0.0005,120]
[342671506,1732035032753,-500.0,0.0005,120]
[342671507,1732035032765,-500.0,0.0005,120]
[342671508,1732035032775,-500.0,0.0005,120]
[342671509,1732035032785,-500.0,0.0005,120]
[342671510,1732035032795,-500.0,0.0005,120]
[342671511,1732035032808,-500.0,0.0005,120]
[342671512,1732035032818,-500.0,0.0005,120]
[342671513,1732035032827,-500.0,0.0005,120]
[342671514,1732035032836,-500.0,0.0005,120]
[342671515,1732035032845,-500.0,0.0005,120]
[342671516,1732035032855,-500.0,0.0005,120]
[342671517,1732035032865,-500.0,0.0005,120]
[342671518,1732035032874,-500.0,0.0005,120]
[342671519,1732035032883,-500.0,0.0005,120]
[342671520,1732035032892,-500.0,0.0005,120]
[342671521,1732035032901,-500.0,0.0005,120]
[342671522,1732035032911,-500.0,0.0005,120]
[342671523,1732035032920,-500.0,0.0005,120]
[342671524,1732035032929,-500.0,0.0005,120]
[342671525,1732035032938,-500.0,0.0005,120]
[342671526,1732035032947,-500.0,0.0005,120]
[342671527,1732035032956,-250.0,0.0005,30]
[342671528,1732035032966,-15682.0,0.0005,14]
[342671529,1732035032975,-1000.0,0.0005,120]
[342671530,1732035032984,-150.0,0.0005,120]
[342671531,1732035032993,-500.0,0.0005,120]
[342671532,1732035033002,-1000.0,0.00050076,120]
[342671533,1732035033012,-250.0,0.00050117,120]
[342671534,1732035033023,-250.0,0.00050141,120]
[342671535,1732035033032,-956.65,0.00050141,2]
[342671536,1732035033042,-8551.4,0.00050274,117]
[342671537,1732035033056,-827.87,0.00050358,30]
[342671538,1732035033065,-200.0,0.000505,15]
[342671539,1732035033074,-192.59,0.00050529,2]
[342671540,1732035033084,-300.0,0.00050596,120]
[342671541,1732035033094,-50000.0,0.00051,51]
[342671542,1732035033104,-50000.0,0.00051,41]
[342671543,1732035033113,-200.0,0.00051005,15]
[342671544,1732035033123,-153.22,0.00051127,2]
[342671545,1732035033132,-435.85,0.000517,2]
[342671546,1732035033142,-2340.1964,0.000519,2]
[342671547,1732035033152,-50000.0,0.00052,52]
[342671548,1732035033161,-50000.0,0.00052,42]
[342671549,1732035033171,-193.96,0.00052154,2]
[342671550,1732035033180,-9212.0,0.00052186,117]
[342671551,1732035033190,-500.0,0.00052269,2]
[342671552,1732035033200,-197.58,0.00052306,120]
[342671553,1732035033211,-151.0,0.00052521,120]
[342671554,1732035033220,-192.59,0.00052793,2]
[342671555,1732035033230,-1429.49644684,0.00052899,25]
[342671556,1732035033239,-469.7109993,0.000529,2]
[342671557,1732035033249,-1999.0,0.00052999,120]
[342671558,1732035033258,-1999.0,0.00052999,120]
[342671559,1732035033268,-1999.0,0.00052999,120]
[342671560,1732035033280,-1999.0,0.00052999,120]
[342671561,1732035033290,-1999.0,0.00052999,120]
[342671562,1732035033303,-1999.0,0.00052999,120]
[342671563,1732035033313,-1999.0,0.00052999,120]
[342671564,1732035033323,-1999.0,0.00052999,120]
[342671565,1732035033332,-1999.0,0.00052999,120]
[342671566,1732035033341,-1999.0,0.00052999,120]
[342671567,1732035033351,-1999.0,0.00052999,120]
[342671568,1732035033360,-1999.0,0.00052999,120]
[342671569,1732035033369,-1999.0,0.00052999,120]
[342671570,1732035033379,-1999.0,0.00052999,120]
[342671571,1732035033389,-2014.0,0.00052999,120]
[342671572,1732035033398,-50000.0,0.00053,53]
[342671573,1732035033408,-50000.0,0.00053,43]
[342671574,1732035033417,-3869.74,0.00053,120]
[342671575,1732035033428,-100000.0,0.00053,120]
[342671576,1732035033438,-207.09,0.00053428,2]
[342671577,1732035033448,-207.09,0.00053695,2]
[342671578,1732035033457,-165.63,0.00053756,2]
[342671579,1732035033467,-8222.11444262,0.00054,54]
[342671580,1732035033482,-838.81388712,0.00054,54]
[342671581,1732035033493,-495.01290414,0.00054,54]
[342671582,1732035033506,-2503.09820368,0.00054,54]
[342671583,1732035033518,-2772.81914242,0.00054,54]
[342671584,1732035033529,-546.7461,0.00054,54]
[342671585,1732035033541,-34621.39532002,0.00054,54]
[342671586,1732035033550,-26114.4832753,0.00054,44]
[342671587,1732035033562,-408.97872602,0.00054,44]
[342671588,1732035033574,-23476.53799868,0.00054,44]
[342671589,1732035033584,-97000.0,0.00054,120]
[342671590,1732035033594,-2000.0,0.00054,120]
[342671591,1732035033603,-9867.0,0.00054099,117]
[342671592,1732035033613,-166.86,0.00054181,2]
[342671593,1732035033623,-240.16,0.00054244,120]
[342671594,1732035033632,-603.492781,0.000545,30]
[342671595,1732035033642,-365.946653,0.000545,30]
[342671596,1732035033650,-500.0,0.00054794,120]
[342671597,1732035033659,-500.0,0.00054794,120]
[342671598,1732035033670,-500.0,0.00054794,120]
[342671599,1732035033680,-500.0,0.00054794,120]
[342671600,1732035033693,-1000.0,0.00054794,120]
[342671601,1732035033703,-500.0,0.00054794,120]
[342671602,1732035033713,-500.0,0.00054794,120]
[342671603,1732035033722,-1199.59,0.00054794,120]
[342671604,1732035033732,-500.0,0.00054794,120]
[342671605,1732035033741,-2000.0,0.00054794,120]
[342671606,1732035033750,-317.19934253,0.00054794,120]
[342671607,1732035033760,-500.0,0.00054794,120]
[342671608,1732035033770,-500.0,0.00054794,120]
[342671609,1732035033779,-3094.4,0.00054794,120]
[342671610,1732035033788,-500.0,0.00054795,120]
[342671611,1732035033797,-12843.78870063,0.00054795,30]
[342671612,1732035033813,-7960.0,0.00054795,30]
[342671613,1732035033825,-2280.20129937,0.00054795,30]
[342671614,1732035033835,-703.0,0.00054795,120]
[342671615,1732035033844,-724.0,0.00054795,120]
[342671616,1732035033854,-680.0,0.00054795,120]
[342671617,1732035033863,-799.0,0.00054795,120]
[342671618,1732035033873,-826.0,0.00054795,120]
[342671619,1732035033882,-197.58,0.0005489,120]
[342671620,1732035033892,-1043.71289603,0.00055,55]
[342671626,1732035037960,-39814.23721983,0.00055,55]
[342671627,1732035037972,-1842.6792033,0.00055,55]
[342671634,1732035038185,-738.58,0.00047241,10]
[342671635,1732035038195,-273.98341685,0.00048763,10]
[342671636,1732035038204,-354.82343347,0.00048763,10]
[342671637,1732035038337,-150.0,0.000466,2]
[342671638,1732035038347,-145.19323806,0.00048763,10]
[342671639,1732035038357,-50000.0,0.0005,40]
[342671640,1732035038367,-500.0,0.00050596,120]
[342671641,1732035038376,-19850.89,0.0005468,120]
[342671642,1732035038386,-500.0,0.00054794,120]
[342671643,1732035038400,-7299.37068084,0.00055,55]
[342671644,1732035038409,-50000.0,0.00055,45]
[342671645,1732035038418,-17115.95327,0.00055,80]
[342671646,1732035038427,-1000.0,0.00055,120]
[342671647,1732035038437,-100000.0,0.00055,120]
[342671648,1732035038447,-2000.0,0.00055,120]
[342671649,1732035038456,-192.59,0.00055057,2]
[342671650,1732035038466,-500.0,0.00055068,120]
[342671651,1732035038475,-556.31140275,0.00055068,120]
[342671652,1732035038484,-498.1996,0.00055068,120]
[342671653,1732035038494,-1000.0,0.00055068,120]
[342671654,1732035038503,-500.0,0.00055068,120]
[342671655,1732035038512,-500.0,0.00055068,120]
[342671656,1732035038522,-1199.59,0.00055068,120]
[342671657,1732035038531,-500.0,0.00055068,120]
[342671658,1732035038540,-2000.0,0.00055068,120]
[342671659,1732035038550,-368.06838268,0.00055068,120]
[342671660,1732035038559,-500.0,0.00055068,120]
[342671661,1732035038569,-3094.4,0.00055068,120]
[342671662,1732035038578,-500.0,0.00055342,120]
[342671663,1732035038588,-290.13917342,0.00055342,120]
[342671664,1732035038597,-500.0,0.00055342,120]
[342671665,1732035038606,-1199.59,0.00055342,120]
[342671666,1732035038615,-500.0,0.00055342,120]
[342671667,1732035038624,-2000.0,0.00055342,120]
[342671668,1732035038634,-500.0,0.00055342,120]
[342671669,1732035038643,-3094.4,0.00055342,120]
[342671670,1732035038652,-469.71099929,0.00055543,2]
[342671671,1732035038661,-500.0,0.00055616,120]
[342671672,1732035038670,-500.0,0.00055616,120]
[342671673,1732035038680,-1199.59,0.00055616,120]
[342671674,1732035038694,-500.0,0.00055616,120]
[342671675,1732035038703,-2000.0,0.00055616,120]
[342671676,1732035038712,-500.0,0.00055616,120]
[342671677,1732035038721,-3094.4,0.00055616,120]
[342671678,1732035038731,-1000.0,0.000557,30]
[342671679,1732035038740,-500.0,0.0005589,120]
[342671680,1732035038749,-500.0,0.0005589,120]
[342671681,1732035038760,-1199.59,0.0005589,120]
[342671682,1732035038771,-376.38347262,0.0005589,120]
[342671683,1732035038780,-2000.0,0.0005589,120]
[342671684,1732035038790,-500.0,0.0005589,120]
[342671685,1732035038800,-3094.4,0.0005589,120]
[342671686,1732035038811,-50000.0,0.00056,56]
[342671687,1732035038826,-100000.0,0.00056,120]
[342671688,1732035038835,-2000.0,0.00056,120]
[342671689,1732035038849,-432276.96442719,0.00056,120]
[342671690,1732035038864,-23593.03557281,0.00056,120]
[342671691,1732035038873,-10528.0,0.00056011,117]
[342671692,1732035038882,-229.18013,0.00056088,30]
[342671693,1732035038891,-500.0,0.00056164,120]
[342671694,1732035038900,-500.0,0.00056164,120]
[342671695,1732035038910,-1199.59,0.00056164,120]
[342671696,1732035038919,-500.0,0.00056164,120]
[342671697,1732035038929,-3094.4,0.00056164,120]
[342671698,1732035038939,-151.0,0.00056274,120]
[342671699,1732035038948,-229.18013,0.00056288,30]
[342671700,1732035038958,-1000.0,0.00056335,120]
[342671701,1732035038968,-500.0,0.00056438,120]
[342671702,1732035038977,-500.0,0.00056438,120]
[342671703,1732035038987,-1199.59,0.00056438,120]
[342671704,1732035038997,-500.0,0.00056438,120]
[342671705,1732035039008,-3094.4,0.00056438,120]
[342671706,1732035039018,-95439.20649945,0.0005648,120]
[342671707,1732035039027,-229.18013,0.00056488,30]
[342671708,1732035039036,-229.18013,0.00056688,30]
[342671709,1732035039045,-500.0,0.00056712,120]
[342671710,1732035039054,-500.0,0.00056712,120]
[342671711,1732035039075,-1199.59,0.00056712,120]
[342671712,1732035039085,-500.0,0.00056712,120]
[342671713,1732035039094,-3094.4,0.00056712,120]
[342671714,1732035039103,-3000.0,0.0005679,92]
[342671715,1732035039112,-503.0,0.00056853,35]
[342671716,1732035039122,-153.22,0.00056884,120]
[342671717,1732035039132,-5000.0,0.000569,120]
[342671718,1732035039142,-500.0,0.00056986,120]
[342671719,1732035039151,-500.0,0.00056986,120]
[342671720,1732035039161,-1199.59,0.00056986,120]
[342671721,1732035039172,-500.0,0.00056986,120]
[342671722,1732035039182,-3094.4,0.00056986,120]
[342671723,1732035039191,-28465.84543512,0.00057,57]
[342671729,1732035039271,-2356.06880708,0.00057,57]
[342671731,1732035039283,-1670.07499393,0.00057,57]
[342671750,1732035039422,-3609.58584824,0.00055,2]
[342671758,1732035039480,-4627.235728,0.00055,2]
[342671759,1732035039537,-500.0,0.00051127,2]
[342671760,1732035039547,-5623.4421458,0.00055,2]
[342671761,1732035039678,-150.0,0.00047,90]
[342671762,1732035039691,-23811.03205994,0.00055,2]
[342671763,1732035039703,-566.3164432,0.00055,2]
[342671764,1732035039719,-253.5131466,0.00055,2]
[342671769,1732035042468,-800.0,0.00045,120]
[342671770,1732035042478,-11508.87462822,0.00055,2]
[342671771,1732035042488,-1000.0,0.00055083,120]
[342671772,1732035042498,-17508.01076387,0.00057,57]
[342671773,1732035042507,-1500.0,0.00057,120]
[342671774,1732035042516,-60072.1146079,0.00057,120]
[342671775,1732035042707,-150.0,0.00047855,2]
[342671776,1732035042716,-500.0,0.00052306,120]
[342671777,1732035042727,-39927.8853921,0.00057,120]
[342671778,1732035042736,-2000.0,0.00057,120]
[342671779,1732035042747,-500.0,0.00057048,35]
[342671780,1732035042757,-500.0,0.00057048,35]
[342671781,1732035042768,-229.18013,0.00057088,30]
[342671782,1732035042778,-671.0,0.00057188,25]
[342671783,1732035042788,-500.0,0.0005726,120]
[342671784,1732035042797,-500.0,0.0005726,120]
[342671785,1732035042806,-1199.59,0.0005726,120]
[342671786,1732035042818,-500.0,0.0005726,120]
[342671787,1732035042828,-3094.4,0.0005726,120]
[342671788,1732035042837,-229.18013,0.00057288,30]
[342671789,1732035042846,-156.96,0.000573,120]
[342671791,1732035042855,-192.59,0.0005732,2]
[342671792,1732035042865,-197.58,0.00057474,120]
[342671793,1732035042875,-229.18013,0.00057488,30]
[342671794,1732035042885,-500.0,0.00057534,120]
[342671795,1732035042894,-500.0,0.00057534,120]
[342671796,1732035042903,-1199.59,0.00057534,120]
[342671798,1732035042913,-171.30454457,0.00057534,120]
[342671800,1732035042922,-3094.4,0.00057534,120]
[342671802,1732035042932,-229.18013,0.00057688,30]
[342671803,1732035042941,-500.0,0.00057745,7]
[342671804,1732035042951,-1526.79192521,0.000578,120]
[342671805,1732035042961,-500.0,0.00057808,120]
[342671806,1732035042970,-500.0,0.00057808,120]
[342671807,1732035042980,-1199.59,0.00057808,120]
[342671808,1732035042990,-3094.4,0.00057808,120]
[342671809,1732035042999,-2449.94995264,0.0005782,2]
[342671810,1732035043015,-9284.10074706,0.0005782,2]
[342671811,1732035043025,-5860.8018738,0.0005786,2]
[342671812,1732035043035,-14712.5498,0.000579,2]
[342671813,1732035043044,-500.0,0.000579,2]
[342671814,1732035043053,-392.2483,0.000579,2]
[342671815,1732035043064,-37000.7175,0.000579,2]
[342671816,1732035043073,-40805.6506,0.000579,2]
[342671817,1732035043082,-50882.3009,0.000579,2]
[342671818,1732035043091,-1000.0,0.000579,2]
[342671819,1732035043101,-11182.6,0.00057924,117]
[342671820,1732035043110,-675.61,0.00057954,120]
[342671821,1732035043120,-13923.24,0.0005798,120]
[342671822,1732035043129,-1670.59690762,0.00057999,70]
[342671823,1732035043140,-1171.64,0.00057999,120]
[342671824,1732035043150,-50000.0,0.00058,58]
[342671825,1732035043160,-29901.26143191,0.00058,120]
[342671826,1732035043170,-346276.05182182,0.00058,120]
[342671827,1732035043181,-1500.0,0.00058,120]
[342671828,1732035043191,-1500.0,0.00058,120]
[342671829,1732035043201,-100000.0,0.00058,120]
[342671830,1732035043210,-2000.0,0.00058,120]
[342671831,1732035043220,-1500.0,0.00058,120]
[342671832,1732035043229,-500.0,0.00058082,120]
[342671833,1732035043239,-500.0,0.00058082,120]
[342671834,1732035043248,-1199.59,0.00058082,120]
[342671835,1732035043257,-3094.4,0.00058082,120]
[342671836,1732035043267,-469.71099929,0.00058186,2]
[342671837,1732035043276,-60716.59400747,0.0005822,120]
[342671838,1732035043286,-500.0,0.00058356,120]
[342671839,1732035043295,-500.0,0.00058356,120]
[342671840,1732035043305,-1199.59,0.00058356,120]
[342671841,1732035043316,-3094.4,0.00058356,120]
[342671842,1732035043326,-500.0,0.0005863,120]
[342671843,1732035043335,-500.0,0.0005863,120]
[342671844,1732035043344,-1199.59,0.0005863,120]
[342671845,1732035043354,-3094.4,0.0005863,120]
[342671846,1732035043363,-1000.0,0.000587,7]
[342671847,1732035043373,-500.0,0.00058904,120]
[342671848,1732035043382,-500.0,0.00058904,120]
[342671849,1732035043392,-1199.59,0.00058904,120]
[342671850,1732035043402,-3094.4,0.00058904,120]
[342671851,1732035043411,-6000.0,0.00058989,120]
[342671852,1732035043421,-1983.36227344,0.00058999,120]
[342671853,1732035043431,-50000.0,0.00059,59]
[342671854,1732035043440,-1500.0,0.00059,120]
[342671855,1732035043450,-1500.0,0.00059,120]
[342671856,1732035043460,-2000.0,0.00059,120]
[342671857,1732035043470,-1500.0,0.00059,120]
[342671858,1732035043479,-569.44503556,0.0005909,2]
[342671859,1732035043488,-500.0,0.00059178,120]
[342671860,1732035043498,-500.0,0.00059178,120]
[342671861,1732035043508,-1199.59,0.00059178,120]
[342671862,1732035043517,-3094.4,0.00059178,120]
[342671863,1732035043527,-3000.0,0.0005929,101]
[342671864,1732035043537,-1171.64,0.00059369,120]
[342671865,1732035043546,-500.0,0.00059452,120]
[342671866,1732035043556,-526.37361444,0.00059452,120]
[342671867,1732035043568,-1199.59,0.00059452,120]
[342671868,1732035043578,-3094.4,0.00059452,120]
[342671869,1732035043588,-192.59,0.00059584,2]
[342671870,1732035043597,-500.0,0.00059726,120]
[342671871,1732035043607,-1199.59,0.00059726,120]
[342671872,1732035043616,-3094.4,0.00059726,120]
[342671873,1732035043626,-11840.4,0.00059836,117]